fUSD/lending_fUSD_20250113
["ID","MTS","AMOUNT","RATE_DAILY","PERIOD"]
[348745377,1736766645646,-716.24,9.988e-05,2]
[348745379,1736766645656,-625.18,9.988e-05,2]
[348745381,1736766645666,-500.0,9.988e-05,2]
[348745383,1736766645675,-1239.07,9.988e-05,2]
[348745385,1736766645684,-500.0,9.988e-05,2]
[348745387,1736766645694,-500.0,9.988e-05,2]
[348745389,1736766645703,-500.0,9.988e-05,2]
[348745391,1736766645712,-849.81,9.988e-05,2]
[348745393,1736766645723,-500.0,9.988e-05,2]
[348745395,1736766645732,-500.0,9.988e-05,2]
[348745398,1736766645742,-500.0,9.988e-05,2]
[348745400,1736766645752,-688.8558476,9.988e-05,2]
[348745403,1736766645770,-384.0341524,9.988e-05,2]
[348745405,1736766645780,-500.0,9.988e-05,2]
[348745407,1736766645790,-500.0,9.988e-05,2]
[348745408,1736766645800,-500.0,9.988e-05,2]
[348745410,1736766645810,-410.9658476,9.988e-05,2]
[348745413,1736766645822,-89.0341524,9.988e-05,2]
[348745415,1736766645831,-946.51,9.988e-05,2]
[348745422,1736766645894,-509.66435466,9.988e-05,2]
[348745424,1736766645904,-500.0,9.988e-05,2]
[348745426,1736766645914,-500.0,9.988e-05,2]
[348745428,1736766645924,-132.29149294,9.988e-05,2]
[348745431,1736766645941,-2389.58850706,9.988e-05,2]
[348745433,1736766645951,-500.0,9.988e-05,2]
[348745435,1736766645960,-500.0,9.988e-05,2]
[348745437,1736766645970,-504.92935538,9.989e-05,2]
[348745439,1736766645979,-500.0,9.989e-05,2]
[348745441,1736766645989,-500.0,9.989e-05,2]
[348745443,1736766645999,-500.0,9.989e-05,2]
[348745445,1736766646009,-500.0,9.989e-05,2]
[348745447,1736766646018,-500.0,9.989e-05,2]
[348745449,1736766646027,-578.17515192,9.989e-05,2]
[348745451,1736766646036,-500.0,9.989e-05,2]
[348745454,1736766646046,-500.0,9.989e-05,2]
[348745457,1736766646056,-500.0,9.989e-05,2]
[348745459,1736766646065,-500.0,9.989e-05,2]
[348745460,1736766646075,-500.0,9.989e-05,2]
[348745463,1736766646088,-500.0,9.989e-05,2]
[348745465,1736766646098,-500.0,9.989e-05,2]
[348745467,1736766646108,-500.0,9.989e-05,2]
[348745468,1736766646117,-500.0,9.989e-05,2]
[348745471,1736766646129,-211.4139635,9.989e-05,2]
[348745474,1736766646138,-500.0,9.989e-05,2]
[348745477,1736766646147,-500.0,9.989e-05,2]
[348745479,1736766646158,-500.0,9.989e-05,2]
[348745481,1736766646168,-550.3231758,9.989e-05,2]
[348745483,1736766646177,-500.0,9.989e-05,2]
[348745485,1736766646186,-500.0,9.989e-05,2]
[348745487,1736766646196,-500.0,9.989e-05,2]
[348745489,1736766646206,-441.36,9.989e-05,2]
[348745491,1736766646216,-500.0,9.989e-05,2]
[348745493,1736766646225,-500.0,9.989e-05,2]
[348745495,1736766646235,-500.0,9.989e-05,2]
[348745497,1736766646245,-500.0,9.989e-05,2]
[348745499,1736766646254,-500.0,9.989e-05,2]
[348745501,1736766646263,-500.0,9.989e-05,2]
[348745503,1736766646272,-500.0,9.989e-05,2]
[348745505,1736766646282,-500.0,9.989e-05,2]
[348745507,1736766646291,-500.0,9.989e-05,2]
[348745509,1736766646301,-500.0,9.989e-05,2]
[348745511,1736766646311,-500.0,9.989e-05,2]
[348745513,1736766646320,-500.0,9.989e-05,2]
[348745515,1736766646330,-500.0,9.989e-05,2]
[348745517,1736766646339,-500.0,9.989e-05,2]
[348745519,1736766646349,-500.0,9.989e-05,2]
[348745520,1736766646359,-500.0,9.989e-05,2]
[348745521,1736766646368,-500.0,9.989e-05,2]
[348745522,1736766646378,-500.0,9.989e-05,2]
[348745523,1736766646388,-500.0,9.989e-05,2]
[348745524,1736766646398,-500.0,9.989e-05,2]
[348745525,1736766646408,-500.0,9.989e-05,2]
[348745526,1736766646417,-500.0,9.989e-05,2]
[348745527,1736766646427,-500.0,9.989e-05,2]
[348745528,1736766646436,-500.0,9.989e-05,2]
[348745530,1736766646446,-500.0,9.989e-05,2]
[348745532,1736766646456,-500.0,9.989e-05,2]
[348745534,1736766646466,-500.0,9.989e-05,2]
[348745536,1736766646476,-500.0,9.989e-05,2]
[348745538,1736766646485,-500.0,9.989e-05,2]
[348745539,1736766646495,-500.0,9.989e-05,2]
[348745541,1736766646505,-506.44098732,9.989e-05,2]
[348745543,1736766646514,-500.37112341,9.989e-05,2]
[348745545,1736766646524,-500.0,9.989e-05,2]
[348745547,1736766646534,-587.2,9.989e-05,2]
[348745549,1736766646543,-500.0,9.989e-05,2]
[348745551,1736766646553,-500.0,9.989e-05,2]
[348745553,1736766646563,-500.0,9.989e-05,2]
[348745555,1736766646572,-500.0,9.989e-05,2]
[348745557,1736766646582,-500.0,9.989e-05,2]
[348745559,1736766646591,-500.0,9.989e-05,2]
[348745561,1736766646601,-500.0,9.989e-05,2]
[348745563,1736766646610,-500.0,9.989e-05,2]
[348745565,1736766646620,-543.58,9.989e-05,2]
[348745567,1736766646629,-500.0,9.989e-05,2]
[348745569,1736766646639,-500.0,9.989e-05,2]
[348745571,1736766646648,-500.0,9.989e-05,2]
[348745573,1736766646657,-500.0,9.989e-05,2]
[348745575,1736766646674,-500.0,9.989e-05,2]
[348745577,1736766646684,-500.0,9.989e-05,2]
[348745579,1736766646694,-500.0,9.989e-05,2]
[348745581,1736766646703,-500.0,9.989e-05,2]
[348745583,1736766646712,-167.70408266,9.989e-05,2]
[348745585,1736766646721,-500.0,9.989e-05,2]
[348745587,1736766646731,-507.11792603,9.989e-05,2]
[348745589,1736766646740,-500.0,9.989e-05,2]
[348745591,1736766646749,-501.71080482,9.989e-05,2]
[348745593,1736766646759,-521.70620342,9.989e-05,2]
[348745595,1736766646768,-500.0,9.989e-05,2]
[348745597,1736766646780,-500.0,9.989e-05,2]
[348745599,1736766646791,-500.0,9.989e-05,2]
[348745601,1736766646800,-500.0,9.989e-05,2]
[348745603,1736766646809,-500.0,9.989e-05,2]
[348745605,1736766646819,-500.0,9.989e-05,2]
[348745607,1736766646828,-500.0,9.989e-05,2]
[348745609,1736766646837,-502.62028118,9.989e-05,2]
[348745611,1736766646847,-500.0,9.989e-05,2]
[348745613,1736766646857,-226.03,9.989e-05,2]
[348745615,1736766646867,-500.0,9.989e-05,2]
[348745617,1736766646876,-500.0,9.989e-05,2]
[348745619,1736766646886,-500.0,9.989e-05,2]
[348745621,1736766646895,-503.79345028,9.989e-05,2]
[348745623,1736766646905,-500.0,9.989e-05,2]
[348745624,1736766646914,-500.0,9.989e-05,2]
[348745626,1736766646924,-508.85630814,9.989e-05,2]
[348745628,1736766646933,-500.0,9.989e-05,2]
[348745630,1736766646942,-500.0,9.989e-05,2]
[348745633,1736766646951,-500.0,9.989e-05,2]
[348745636,1736766646961,-500.0,9.989e-05,2]
[348745638,1736766646970,-500.0,9.989e-05,2]
[348745640,1736766646980,-504.29210305,9.989e-05,2]
[348745642,1736766646990,-500.0,9.989e-05,2]
[348745644,1736766646999,-500.0,9.989e-05,2]
[348745646,1736766647008,-177.34,9.989e-05,2]
[348745648,1736766647018,-500.0,9.989e-05,2]
[348745650,1736766647027,-500.0,9.989e-05,2]
[348745652,1736766647037,-500.0,9.989e-05,2]
[348745654,1736766647046,-500.0,9.989e-05,2]
[348745656,1736766647056,-500.0,9.989e-05,2]
[348745658,1736766647065,-500.0,9.989e-05,2]
[348745660,1736766647075,-507.53313384,9.989e-05,2]
[348745662,1736766647087,-500.0,9.989e-05,2]
[348745664,1736766647102,-500.0,9.989e-05,2]
[348745666,1736766647111,-500.0,9.989e-05,2]
[348745668,1736766647121,-500.0,9.989e-05,2]
[348745670,1736766647131,-500.0,9.989e-05,2]
[348745672,1736766647140,-219.83524001,9.989e-05,2]
[348745674,1736766647150,-500.0,9.989e-05,2]
[348745676,1736766647160,-500.0,9.989e-05,2]
[348745677,1736766647170,-507.21529169,9.989e-05,2]
[348745679,1736766647180,-406.28974153,9.989e-05,2]
[348745681,1736766647189,-500.0,9.989e-05,2]
[348745683,1736766647199,-500.0,9.989e-05,2]
[348745685,1736766647209,-500.0,9.989e-05,2]
[348745688,1736766647219,-500.0,9.989e-05,2]
[348745690,1736766647229,-1661.14,9.989e-05,2]
[348745692,1736766647238,-504.17317686,9.989e-05,2]
[348745693,1736766647248,-500.0,9.989e-05,2]
[348745695,1736766647258,-500.0,9.989e-05,2]
[348745697,1736766647267,-500.0,9.989e-05,2]
[348745699,1736766647277,-500.0,9.989e-05,2]
[348745701,1736766647287,-500.0,9.989e-05,2]
[348745703,1736766647296,-500.0,9.989e-05,2]
[348745705,1736766647305,-293.45151308,9.989e-05,2]
[348745707,1736766647314,-500.0,9.989e-05,2]
[348745709,1736766647324,-501.59043457,9.989e-05,2]
[348745711,1736766647333,-500.0,9.989e-05,2]
[348745712,1736766647342,-500.0,9.989e-05,2]
[348745713,1736766647353,-503.34524377,9.989e-05,2]
[348745714,1736766647364,-500.0,9.989e-05,2]
[348745715,1736766647374,-500.0,9.989e-05,2]
[348745716,1736766647384,-500.0,9.989e-05,2]
[348745717,1736766647394,-500.0,9.989e-05,2]
[348745718,1736766647403,-500.0,9.989e-05,2]
[348745719,1736766647413,-500.0,9.989e-05,2]
[348745720,1736766647422,-500.0,9.989e-05,2]
[348745721,1736766647432,-500.0,9.989e-05,2]
[348745722,1736766647441,-500.0,9.989e-05,2]
[348745724,1736766647450,-500.0,9.989e-05,2]
[348745726,1736766647460,-500.0,9.989e-05,2]
[348745728,1736766647470,-500.0,9.989e-05,2]
[348745730,1736766647479,-1368.63,9.989e-05,2]
[348745732,1736766647488,-500.0,9.989e-05,2]
[348745734,1736766647497,-269.9690249,9.989e-05,2]
[348745736,1736766647507,-500.0,9.989e-05,2]
[348745738,1736766647516,-500.0,9.989e-05,2]
[348745740,1736766647526,-500.0,9.989e-05,2]
[348745742,1736766647535,-500.0,9.989e-05,2]
[348745744,1736766647543,-500.0,9.989e-05,2]
[348745746,1736766647552,-500.0,9.989e-05,2]
[348745748,1736766647562,-500.0,9.989e-05,2]
[348745750,1736766647571,-500.0,9.989e-05,2]
[348745751,1736766647581,-500.0,9.989e-05,2]
[348745753,1736766647591,-500.0,9.989e-05,2]
[348745755,1736766647600,-500.0,9.989e-05,2]
[348745757,1736766647610,-500.0,9.989e-05,2]
[348745760,1736766647620,-500.0,9.989e-05,2]
[348745762,1736766647629,-500.0,9.989e-05,2]
[348745763,1736766647640,-1335.56,9.989e-05,2]
[348745765,1736766647649,-500.0,9.989e-05,2]
[348745767,1736766647658,-500.0,9.989e-05,2]
[348745769,1736766647667,-500.0,9.989e-05,2]
[348745771,1736766647677,-500.0,9.989e-05,2]
[348745773,1736766647687,-504.4109369,9.989e-05,2]
[348745775,1736766647696,-500.0,9.989e-05,2]
[348745777,1736766647705,-500.0,9.989e-05,2]
[348745779,1736766647714,-500.0,9.989e-05,2]
[348745781,1736766647723,-500.0,9.989e-05,2]
[348745783,1736766647732,-500.0,9.989e-05,2]
[348745785,1736766647741,-500.0,9.989e-05,2]
[348745787,1736766647750,-500.0,9.989e-05,2]
[348745789,1736766647759,-500.0,9.989e-05,2]
[348745791,1736766647768,-500.0,9.989e-05,2]
[348745793,1736766647778,-500.0,9.989e-05,2]
[348745795,1736766647787,-500.0,9.989e-05,2]
[348745797,1736766647796,-500.0,9.989e-05,2]
[348745799,1736766647806,-500.0,9.989e-05,2]
[348745801,1736766647815,-500.0,9.989e-05,2]
[348745803,1736766647826,-500.0,9.989e-05,2]
[348745805,1736766647835,-500.0,9.989e-05,2]
[348745807,1736766647844,-511.49065013,9.989e-05,2]
[348745809,1736766647854,-500.0,9.989e-05,2]
[348745811,1736766647863,-500.0,9.989e-05,2]
[348745813,1736766647874,-500.0,9.989e-05,2]
[348745815,1736766647883,-500.0,9.989e-05,2]
[348745817,1736766647894,-500.0,9.989e-05,2]
[348745819,1736766647903,-500.0,9.989e-05,2]
[348745821,1736766647912,-500.0,9.989e-05,2]
[348745823,1736766647921,-500.0,9.989e-05,2]
[348745825,1736766647930,-500.0,9.989e-05,2]
[348745827,1736766647939,-500.0,9.989e-05,2]
[348745828,1736766647949,-500.0,9.989e-05,2]
[348745830,1736766647958,-500.0,9.989e-05,2]
[348745832,1736766647968,-500.0,9.989e-05,2]
[348745833,1736766647977,-642.18317492,9.989e-05,2]
[348745834,1736766647986,-507.28355779,9.989e-05,2]
[348745835,1736766647995,-500.0,9.989e-05,2]
[348745836,1736766648005,-500.0,9.989e-05,2]
[348745837,1736766648015,-500.0,9.989e-05,2]
[348745838,1736766648025,-500.0,9.989e-05,2]
[348745839,1736766648037,-500.0,9.989e-05,2]
[348745840,1736766648047,-500.0,9.989e-05,2]
[348745841,1736766648057,-500.0,9.989e-05,2]
[348745842,1736766648067,-500.0,9.989e-05,2]
[348745843,1736766648081,-500.0,9.989e-05,2]
[348745844,1736766648092,-500.0,9.989e-05,2]
[348745845,1736766648101,-500.0,9.989e-05,2]
[348745846,1736766648111,-500.0,9.989e-05,2]
[348745847,1736766648123,-500.0,9.989e-05,2]
[348745848,1736766648133,-500.0,9.989e-05,2]
[348745849,1736766648143,-500.0,9.989e-05,2]
[348745850,1736766648155,-591.06542342,9.989e-05,2]
[348745851,1736766648166,-500.0,9.989e-05,2]
[348745853,1736766648176,-500.0,9.989e-05,2]
[348745855,1736766648187,-500.0,9.989e-05,2]
[348745857,1736766648196,-500.0,9.989e-05,2]
[348745859,1736766648207,-500.0,9.989e-05,2]
[348745860,1736766648216,-500.0,9.989e-05,2]
[348745862,1736766648226,-500.0,9.989e-05,2]
[348745864,1736766648237,-500.0,9.989e-05,2]
[348745866,1736766648247,-500.0,9.989e-05,2]
[348745868,1736766648257,-500.0,9.989e-05,2]
[348745870,1736766648267,-500.0,9.989e-05,2]
[348745872,1736766648278,-500.0,9.989e-05,2]
[348745874,1736766648289,-500.0,9.989e-05,2]
[348745876,1736766648299,-500.0,9.989e-05,2]
[348745878,1736766648309,-500.0,9.989e-05,2]
[348745881,1736766648320,-500.0,9.989e-05,2]
[348745882,1736766648331,-500.0,9.989e-05,2]
[348745883,1736766648342,-500.0,9.989e-05,2]
[348745884,1736766648354,-500.0,9.989e-05,2]
[348745885,1736766648365,-500.0,9.989e-05,2]
[348745886,1736766648375,-500.0,9.989e-05,2]
[348745887,1736766648392,-500.0,9.989e-05,2]
[348745888,1736766648403,-486.78152509,9.989e-05,2]
[348745889,1736766648416,-500.0,9.989e-05,2]
[348745890,1736766648427,-500.0,9.989e-05,2]
[348745891,1736766648440,-500.0,9.989e-05,2]
[348745892,1736766648450,-500.0,9.989e-05,2]
[348745893,1736766648460,-500.0,9.989e-05,2]
[348745894,1736766648470,-500.0,9.989e-05,2]
[348745895,1736766648480,-543.531637,9.99e-05,2]
[348745896,1736766648491,-500.0,9.99e-05,2]
[348745897,1736766648501,-639.179588,9.99e-05,2]
[348745898,1736766648511,-500.0,9.99e-05,2]
[348745899,1736766648521,-950.12,9.99e-05,2]
[348745900,1736766648531,-500.0,9.99e-05,2]
[348745901,1736766648542,-500.0,9.99e-05,2]
[348745902,1736766648551,-500.0,9.99e-05,2]
[348745903,1736766648562,-512.97,9.99e-05,2]
[348745904,1736766648577,-627.62,9.99e-05,2]
[348745905,1736766648600,-741.67,9.99e-05,2]
[348745906,1736766648623,-163.15969576,9.99e-05,2]
[348745907,1736766648646,-676.87,9.99e-05,2]
[348745908,1736766648668,-500.0,9.99e-05,2]
[348745909,1736766648684,-500.0,9.99e-05,2]
[348745911,1736766648706,-500.0,9.99e-05,2]
[348745913,1736766648727,-500.0,9.99e-05,2]
[348745915,1736766648748,-500.0,9.99e-05,2]
[348745917,1736766648770,-1411.02,9.99e-05,2]
[348745919,1736766648791,-500.0,9.99e-05,2]
[348745921,1736766648812,-500.0,9.99e-05,2]
[348745923,1736766648835,-645.96,9.99e-05,2]
[348745925,1736766648850,-500.0,9.99e-05,2]
[348745927,1736766648862,-500.0,9.99e-05,2]
[348745929,1736766648873,-1049.08,9.99e-05,2]
[348745931,1736766648883,-1538.61,9.99e-05,2]
[348745933,1736766648894,-699.47,9.99e-05,2]
[348745935,1736766648904,-1025.86,9.99e-05,2]
[348745936,1736766648915,-500.0,9.99e-05,2]
[348745938,1736766648926,-500.0,9.99e-05,2]
[348745941,1736766648937,-850.89,9.99e-05,2]
[348745943,1736766648947,-1293.09,9.99e-05,2]
[348745945,1736766648957,-500.0,9.99e-05,2]
[348745947,1736766648967,-500.0,9.99e-05,2]
[348745949,1736766648978,-500.0,9.99e-05,2]
[348745950,1736766648988,-1114.24,9.99e-05,2]
[348745951,1736766648999,-766.69,9.99e-05,2]
[348745952,1736766649009,-710.77,9.99e-05,2]
[348745953,1736766649019,-536.3,9.99e-05,2]
[348745954,1736766649030,-1226.76,9.99e-05,2]
[348745955,1736766649041,-501.95,9.99e-05,2]
[348745956,1736766649052,-1445.33,9.99e-05,2]
[348745957,1736766649062,-500.0,9.99e-05,2]
[348745958,1736766649073,-638.29,9.99e-05,2]
[348745960,1736766649086,-500.0,9.99e-05,2]
[348745962,1736766649096,-513.74,9.99e-05,2]
[348745964,1736766649108,-1329.25,9.99e-05,2]
[348745966,1736766649118,-500.0,9.99e-05,2]
[348745968,1736766649129,-500.0,9.99e-05,2]
[348745969,1736766649138,-500.0,9.99e-05,2]
[348745971,1736766649148,-18157.41469161,9.998e-05,2]
[348745973,1736766649161,-500.0,9.999e-05,2]
[348745975,1736766649172,-500.0,9.999e-05,2]
[348745977,1736766649182,-500.0,9.999e-05,2]
[348745979,1736766649192,-500.0,9.999e-05,2]
[348745981,1736766649203,-500.0,9.999e-05,2]
[348745983,1736766649214,-500.0,9.999e-05,2]
[348745986,1736766649224,-500.0,9.999e-05,2]
[348745987,1736766649234,-500.0,9.999e-05,2]
[348745989,1736766649246,-500.0,9.999e-05,2]
[348745992,1736766649256,-500.0,9.999e-05,2]
[348745994,1736766649266,-163.29079478,9.999e-05,2]
[348745996,1736766649276,-500.0,9.999e-05,2]
[348745998,1736766649285,-574.56,9.999e-05,2]
[348746000,1736766649294,-500.0,9.999e-05,2]
[348746002,1736766649304,-1035.12,9.999e-05,2]
[348746004,1736766649314,-500.0,9.999e-05,2]
[348746006,1736766649324,-680.12,9.999e-05,2]
[348746008,1736766649333,-500.0,9.999e-05,2]
[348746010,1736766649344,-500.0,9.999e-05,2]
[348746012,1736766649354,-522.89,9.999e-05,2]
[348746014,1736766649364,-500.0,9.999e-05,2]
[348746016,1736766649374,-500.0,9.999e-05,2]
[348746018,1736766649385,-748.52,9.999e-05,2]
[348746020,1736766649395,-500.0,9.999e-05,2]
[348746022,1736766649405,-500.0,9.999e-05,2]
[348746024,1736766649415,-500.0,9.999e-05,2]
[348746026,1736766649425,-500.0,9.999e-05,2]
[348746028,1736766649435,-500.0,9.999e-05,2]
[348746030,1736766649446,-500.0,9.999e-05,2]
[348746032,1736766649456,-500.0,9.999e-05,2]
[348746034,1736766649466,-500.0,9.999e-05,2]
[348746036,1736766649477,-500.0,9.999e-05,2]
[348746038,1736766649487,-500.0,9.999e-05,2]
[348746040,1736766649497,-500.0,9.999e-05,2]
[348746042,1736766649507,-747.74,9.999e-05,2]
[348746044,1736766649517,-500.0,9.999e-05,2]
[348746046,1736766649527,-551.48,9.999e-05,2]
[348746048,1736766649536,-500.0,9.999e-05,2]
[348746050,1736766649546,-528.45,9.999e-05,2]
[348746052,1736766649557,-500.0,9.999e-05,2]
[348746054,1736766649567,-1145.88,9.999e-05,2]
[348746056,1736766649576,-500.0,9.999e-05,2]
[348746058,1736766649586,-1607.63,9.999e-05,2]
[348746060,1736766649596,-500.0,9.999e-05,2]
[348746062,1736766649606,-1000.0,9.999e-05,2]
[348746064,1736766649615,-32141.23932473,0.0001,2]
[348746092,1736766649870,-4367.6628453,0.0001,2]
[348746110,1736766650543,-717.17,9.988e-05,2]
[348746111,1736766650552,-312.98299638,0.0001,2]
[348746112,1736766650563,-22429.0,0.0001,2]
[348746113,1736766650574,-320.999955,0.0001,2]
[348746114,1736766650585,-18383.32683768,0.0001,2]
[348746115,1736766650596,-1556.2779366,0.0001,2]
[348746116,1736766650608,-916.86,0.0001,2]
[348746117,1736766650618,-738.18300526,0.0001,2]
[348746118,1736766650655,-364.80432536,0.0001,2]
[348746119,1736766650670,-432.74387396,0.0001,2]
[348746120,1736766650682,-1473.45101001,0.0001,2]
[348746121,1736766650692,-89929.75378141,0.0001,2]
[348746122,1736766650703,-24103.0,0.0001,2]
[348746123,1736766650722,-1228.82886952,0.0001,2]
[348746124,1736766651013,-36814.60893704,0.0001,2]
[348746125,1736766651025,-91521.36363597,0.0001,2]
[348746126,1736766651041,-4592.3,0.0001,2]
[348746127,1736766651058,-532.76709428,0.0001,2]
[348746128,1736766651069,-59412.00461424,0.0001,2]
[348746129,1736766651081,-14203.26012712,0.0001,2]
[348746130,1736766651104,-16254.27331525,0.0001,2]
[348746131,1736766651118,-389.93801327,0.0001,2]
[348746132,1736766651130,-57375.34,0.0001,2]
[348746133,1736766651207,-500.0,9.714e-05,2]
[348746134,1736766651216,-464.96,0.0001,2]
[348746135,1736766740420,705.57,8.219e-05,2]
[348746137,1736767083176,-300.0,8.98e-05,2]
[348746138,1736767138774,-236.8,8.912e-05,2]
[348746139,1736767322527,-30000.0,0.00023,120]
[348746140,1736767527458,-250.0,8.949e-05,2]
[348746145,1736767607072,670.29,8.219e-05,2]
[348746214,1736767769488,-1876.05,8.775e-05,2]
[348746364,1736767811821,-169.51,8.775e-05,2]
[348746365,1736767811843,-830.49,8.775e-05,2]
[348746376,1736767832523,-169.51,8.775e-05,2]
[348746378,1736767832533,-23711.859906,8.956e-05,2]
[348746379,1736767832542,-173.40642769,9.001e-05,2]
[348746380,1736767832552,-250.0,9.001e-05,2]
[348746381,1736767832562,-250.0,9.026e-05,2]
[348746383,1736767832571,-549.61957397,9.106e-05,2]
[348746384,1736767832580,-165.10057231,9.106e-05,2]
[348746385,1736767832599,-171.72942769,9.106e-05,2]
[348746386,1736767832608,-700.0,9.2e-05,3]
[348746387,1736767832617,-331.87297418,9.277e-05,2]
[348746388,1736767832644,-3800.71102582,9.277e-05,2]
[348746389,1736767832653,-218.224,9.277e-05,2]
[348746390,1736767832662,-1400.0,9.3e-05,3]
[348746391,1736767832671,-2100.0,9.4e-05,3]
[348746392,1736767832681,-500.0,9.442e-05,2]
[348746393,1736767832690,-500.0,9.442e-05,2]
[348746394,1736767832701,-639.26,9.442e-05,2]
[348746395,1736767832710,-500.0,9.442e-05,2]
[348746396,1736767832719,-500.0,9.442e-05,2]
[348746397,1736767832728,-500.0,9.442e-05,2]
[348746398,1736767832737,-584.45,9.442e-05,2]
[348746399,1736767832747,-754.24,9.442e-05,2]
[348746400,1736767832757,-60.37265667,9.442e-05,2]
[348746401,1736767832768,-658.56734333,9.442e-05,2]
[348746402,1736767832776,-1068.92625667,9.442e-05,2]
[348746403,1736767832787,-404.21374333,9.442e-05,2]
[348746404,1736767832796,-804.89049212,9.442e-05,2]
[348746405,1736767832807,-459.231,9.442e-05,2]
[348746406,1736767832818,-779.12850788,9.442e-05,2]
[348746407,1736767832827,-500.0,9.442e-05,2]
[348746408,1736767832836,-1036.57,9.442e-05,2]
[348746409,1736767832846,-500.0,9.442e-05,2]
[348746410,1736767832856,-1334.2,9.442e-05,2]
[348746411,1736767832865,-173.40642769,9.442e-05,2]
[348746412,1736767832874,-679.98,9.442e-05,2]
[348746413,1736767832883,-572.53,9.442e-05,2]
[348746414,1736767832892,-500.0,9.442e-05,2]
[348746415,1736767832902,-932.82,9.442e-05,2]
[348746416,1736767832911,-756.05,9.442e-05,2]
[348746417,1736767832921,-692.58,9.442e-05,2]
[348746418,1736767832931,-376.38223773,9.442e-05,2]
[348746419,1736767832940,-500.0,9.442e-05,2]
[348746420,1736767832952,-500.0,9.442e-05,2]
[348746421,1736767832961,-500.0,9.442e-05,2]
[348746422,1736767832970,-500.0,9.442e-05,2]
[348746423,1736767832979,-597.84,9.442e-05,2]
[348746424,1736767832988,-159.841,9.5e-05,2]
[348746425,1736767832997,-609.98,9.5e-05,2]
[348746426,1736767833006,-2900.0,9.5e-05,3]
[348746427,1736767833016,-3600.0,9.6e-05,3]
[348746428,1736767833025,-173.34,9.672e-05,2]
[348746429,1736767833034,-500.0,9.699e-05,2]
[348746430,1736767833043,-700.0,9.7e-05,3]
[348746431,1736767833053,-591.9,9.714e-05,2]
[348746432,1736767833063,-500.0,9.714e-05,2]
[348746433,1736767833072,-500.0,9.714e-05,2]
[348746434,1736767833082,-500.0,9.714e-05,2]
[348746435,1736767833092,-500.0,9.714e-05,2]
[348746436,1736767833102,-500.0,9.714e-05,2]
[348746437,1736767833111,-500.0,9.714e-05,2]
[348746438,1736767833121,-500.0,9.714e-05,2]
[348746439,1736767833131,-170.12,9.714e-05,2]
[348746440,1736767833140,-500.0,9.714e-05,2]
[348746441,1736767833150,-500.0,9.714e-05,2]
[348746442,1736767833159,-232.72,9.714e-05,2]
[348746443,1736767833169,-500.0,9.714e-05,2]
[348746445,1736767833180,-500.0,9.714e-05,2]
[348746447,1736767833190,-500.0,9.714e-05,2]
[348746449,1736767833201,-500.0,9.714e-05,2]
[348746452,1736767833211,-500.0,9.714e-05,2]
[348746453,1736767833221,-500.0,9.714e-05,2]
[348746455,1736767833231,-500.0,9.714e-05,2]
[348746457,1736767833240,-500.0,9.714e-05,2]
[348746459,1736767833251,-500.0,9.714e-05,2]
[348746461,1736767833261,-500.0,9.714e-05,2]
[348746463,1736767833271,-500.0,9.714e-05,2]
[348746466,1736767833281,-500.0,9.714e-05,2]
[348746467,1736767833291,-500.0,9.714e-05,2]
[348746469,1736767833301,-500.0,9.714e-05,2]
[348746471,1736767833311,-500.0,9.714e-05,2]
[348746473,1736767833321,-500.0,9.714e-05,2]
[348746475,1736767833331,-474.83773589,9.714e-05,2]
[348746477,1736767833341,-500.0,9.714e-05,2]
[348746479,1736767833350,-550.28,9.714e-05,2]
[348746482,1736767833360,-500.0,9.714e-05,2]
[348746484,1736767833370,-500.0,9.714e-05,2]
[348746486,1736767833380,-335.52,9.714e-05,2]